Cogmind - Beta 14 @@@ ROGUE MODE // 2024.11.23 @ 20:09:45 Player: human Result: Destroyed by G-34 Mercenary with Small Laser Performance ------------- Evolutions (0) 0 Regions Visited (2) 400 Robots Destroyed (8) 40 Value Destroyed (123) 123 Prototype IDs (1) 20 Alien Tech Used (0) 0 Bonus (0) 0 TOTAL SCORE: 583 Bonus ------- None Cogmind --------- Core Integrity 0/250 Matter 183/300 Energy 100/100 System Corruption 0% Temperature Cool (6) Movement Core (150) Ox2 Location -10/Mines Parts ------- > --- POWER (1) -------- (None) > --- PROPULSION (2) --- (None) > --- UTILITY (2) ------ Small Storage Unit > --- WEAPON (2) ------- Light Assault Rifle Light Assault Rifle > --- INVENTORY (8) ---- Light Ion Engine Huge Storage Unit Decoy Drone Bay (16/16) Mining Laser Peak State ------------ > --- POWER ------------ (None) > --- PROPULSION ------- Aluminum Leg > --- UTILITY ---------- Decoy Drone Bay > --- WEAPON ----------- Assault Rifle Light Assault Rifle > --- INVENTORY -------- Light Assault Rifle Grenade Launcher Mining Laser [Rating: 17] Favorites ----------- Power Light Ion Engine Engine Light Ion Engine Propulsion Aluminum Leg Leg Aluminum Leg Flight Unit Flight Unit Utility Small Storage Unit Device Decoy Drone Bay Storage Small Storage Unit Weapon Light Assault Rifle Ballistic Gun Light Assault Rifle Launcher Grenade Launcher Build | -11 -10 -10 ------- Run | Yrd Mat Min Slots Evolved . | . . . Power . | . . . Propulsion . | . . . Utility . | . . . Weapon . | . . . Parts Attached 15 | 6 1 8 Power 2 | 1 1 . Engine 2 | 1 1 . Core . | . . . Reactor . | . . . Propulsion 4 | 2 . 2 Treads . | . . . Leg 2 | 2 . . Wheel . | . . . Hover . | . . . Flight 2 | . . 2 Utility 3 | 1 . 2 Device 1 | . . 1 Storage 2 | 1 . 1 Processor . | . . . Hackware . | . . . Protection . | . . . Artifact . | . . . Weapon 6 | 2 . 4 Energy Gun . | . . . Energy Cannon . | . . . Ballistic Gun 5 | 2 . 3 Ballistic Cannon . | . . . Launcher 1 | . . 1 Special Weapon . | . . . Impact Weapon . | . . . Slashing Weapon . | . . . Piercing Weapon . | . . . Special Melee Weapon . | . . . Unidentified Prototypes 1 | . . 1 Parts Lost 9 | . 3 6 Power 2 | . 2 . Propulsion 4 | . 1 3 Utility . | . . . Weapon 3 | . . 3 Highest Loss Streak 4 | . 2 4 To Critical Strikes . | . . . Average Slot Usage (%) 65 | . 81 50 Engine 5 | . 11 . Leg 16 | . 27 6 Flight 3 | . . 6 Storage 14 | . 14 14 Ballistic Gun 25 | . 28 22 Peak Build Rating 17 | 6 6 17 Average Rating 4 | 3 5 4 On Entrance 3 | . 6 4 Naked Turns . | . . . Heaviest Build 11 | 11 11 8 Greatest Support 20 | 20 20 10 Greatest Overweight (x) 1 | . . 1 Average Overweight (x) . | . . . Largest Inventory Capacity 8 | 8 8 8 Average Capacity 7 | 6 8 7 Most Carried 8 | 5 3 8 Average Carried 2 | 1 . 5 Final Capacity 8 | 8 8 8 Final Carried 5 | . 3 5 Class Distribution -------------------- 100% | Mutant Dominant Class ---------------- Mutant | -10/Materials Mutant | -10/Mines Resources | -11 -10 -10 ----------- Run | Yrd Mat Min Matter Collected 298 | 204 30 64 Remotely . | . . . Salvage Created 208 | . 49 159 Parts 12 | . 3 9 Haulers Intercepted . | . . . Recyclers Shooed . | . . . Parts Field Recycled . | . . . Retrieved Matter . | . . . Parts Self-Destructed . | . . . Prevented . | . . . Kills | -11 -10 -10 ------- Run | Yrd Mat Min Combat Hostiles Destroyed 7 | . 3 4 Guns 6 | . 3 3 AOE 1 | . . 1 Classes Destroyed 3 | . 1 2 Recycler 1 | . . 1 Swarmer 6 | . 3 3 Grunt 1 | . . 1 Best Kill Streak 3 | . 3 3 Combat Bots Only 3 | . 3 2 Max Kills in Single Turn 2 | . 2 1 Gunslinging 1 | . 1 . Exploded 1 | . . 1 Melee . | . . . Uniques/NPCs Destroyed . | . . . Combat | -11 -10 -10 -------- Run | Yrd Mat Min Hostile Shots Fired 112 | . 61 51 Missed 24 | . 14 10 Damage Taken 900 | . 444 456 Core 250 | . 77 173 Absorbed by Shields . | . . . Core Remaining (%) 100 | 100 . . Volleys Fired 40 | . 11 29 Largest 2 | . 2 2 Hottest 50 | . 40 50 Shots Fired 63 | . 22 41 Gun 61 | . 22 39 Cannon . | . . . Launcher 2 | . . 2 Special . | . . . Kinetic 61 | . 22 39 Thermal . | . . . Explosive 2 | . . 2 Electromagnetic . | . . . Robot Hit Streak 11 | . 6 11 Robot Miss Streak 6 | . 6 4 Penetration Max . | . . . Secondary Targets 1 | . 1 . Max Gunslinging Chain 1 | . 1 . Shots Hit Robots 38 | . 12 26 Core Hits 16 | . 5 11 Critical Kills . | . . . Critical Parts Destroyed . | . . . Critical Strikes . | . . . Melee Attacks . | . . . Impact . | . . . Slashing . | . . . Piercing . | . . . Sneak Attacks . | . . . Combat Hostiles . | . . . Follow-up Attacks . | . . . Damage Inflicted 629 | . 161 468 Guns 361 | . 161 200 Cannons . | . . . Explosions 268 | . . 268 Melee . | . . . Ramming . | . . . Kinetic 361 | . 161 200 Thermal 136 | . . 136 Explosive 132 | . . 132 Electromagnetic . | . . . Impact . | . . . Slashing . | . . . Piercing . | . . . Highest Corruption . | . . . Average Corruption . | . . . Corruption Purged . | . . . Corruption Blocked . | . . . Overload Shots . | . . . Overflow Damage 7 | . . 7 Projectiles . | . . . Explosions 7 | . . 7 Melee . | . . . Knockbacks . | . . . Impact . | . . . Kinetic . | . . . Secondary . | . . . Self-Inflicted Damage 76 | . . 76 Shots 3 | . . 3 Rammed . | . . . Targets Rammed . | . . . Kicked . | . . . Crushed . | . . . Highest Temperature 26 | . . 26 Average Temperature 10 | . . 10 Received Heat Transfer 114 | . . 114 Siege Activations . | . . . Robots Corrupted . | . . . Combat Hostiles . | . . . Parts Fried . | . . . Impact Corruptions . | . . . Robots Melted . | . . . Combat Hostiles . | . . . Parts Melted . | . . . Heat Transferred 150 | . . 150 Parts Sabotaged . | . . . Parts Stolen . | . . . Parts Stripped . | . . . Power Chain Reactions . | . . . Alert | -11 -10 -10 ------- Run | Yrd Mat Min Peak Influence 142 | . 75 142 Initial 21 | . . 21 Average 36 | . 34 47 Maximum Alert Level . | . . . Low Security (%) 100 | 100 100 100 Level 1 . | . . . Level 2 . | . . . Level 3 . | . . . Level 4 . | . . . Level 5 . | . . . High Security . | . . . Max Security . | . . . Squads Dispatched 1 | . 1 . Investigation . | . . . Extermination . | . . . Reinforcement 1 | . 1 . Assault . | . . . Garrison . | . . . Intercept . | . . . Searches Triggered . | . . . Construction Impeded . | . . . Haulers Reinforced . | . . . Active Scanning Responses . | . . . Cargo Convoy Interrupts . | . . . Stealth | -11 -10 -10 --------- Run | Yrd Mat Min Distress Signals . | . . . Communications Jammed . | . . . Distress Signals . | . . . Times Spotted 10 | . 4 6 Peak Tracking Total 4 | . 4 3 Tactical Retreats 1 | . . 1 Traps | -11 -10 -10 ------- Run | Yrd Mat Min Traps Triggered 1 | . 1 . Indirectly . | . . . Trap Hack Attempts . | . . . Triggered . | . . . Disarmed . | . . . Reprogrammed . | . . . Reused . | . . . Traps Extracted . | . . . Installed . | . . . Triggered . | . . . Machines | -11 -10 -10 ---------- Run | Yrd Mat Min Machines Disabled 1 | . . 1 Max in Single Turn 1 | . . 1 Machines Repaired . | . . . Machines Dismantled . | . . . Machines Sabotaged . | . . . Overloaded Fab Kills . | . . . Hacking | -11 -10 -10 --------- Run | Yrd Mat Min Machines Accessed 1 | . . 1 Terminals . | . . . Fabricators . | . . . Repair Stations . | . . . Recycling Units . | . . . Scanalyzers . | . . . Garrison Access . | . . . Total Hacks 1 | . . 1 Successful 1 | . . 1 Failed . | . . . Catastrophic . | . . . Database Lockouts . | . . . Manual . | . . . Terminals . | . . . Fabricators . | . . . Repair Stations . | . . . Recycling Units . | . . . Scanalyzers . | . . . Garrison Access . | . . . Terminal Hacks 1 | . . 1 Open Door 1 | . . 1 Fabricator Hacks . | . . . Repair Station Hacks . | . . . Recycling Unit Hacks . | . . . Scanalyzer . | . . . Garrison Access Hacks . | . . . Unauthorized Hacks . | . . . Terminals . | . . . Fabricators . | . . . Repair Stations . | . . . Recycling Units . | . . . Scanalyzers . | . . . Garrison Access . | . . . Data Cores Recovered . | . . . Used . | . . . Hacking Detections . | . . . Full Trace Events . | . . . Feedback Events . | . . . Feedback Blocked . | . . . Robot Schematics Acquired . | . . . Robots Built . | . . . Authchips . | . . . Time . | . . . Total Robot Build Rating . | . . . Part Schematics Acquired . | . . . Parts Built . | . . . Authchips . | . . . Time . | . . . Total Part Build Rating . | . . . Parts Repaired . | . . . Time . | . . . Parts Recycled . | . . . Recycled Matter . | . . . Retrieved Matter . | . . . Retrieved Components . | . . . Parts Scanalyzed . | . . . Part Schematics Acquired . | . . . Parts Damaged . | . . . Bothacking | -11 -10 -10 ------------ Run | Yrd Mat Min Used RIF Installer . | . . . Robots Hacked . | . . . Non-combat . | . . . Combat . | . . . Robot Hacks Applied . | . . . Relay Couplers Released . | . . . Fabnet Peak Effective % . | . . . Robots Rewired . | . . . Allies Hacked . | . . . Hacks Repelled . | . . . Allies | -11 -10 -10 -------- Run | Yrd Mat Min Total Allies . | . . . Largest Group . | . . . Highest-Rated Group . | . . . Highest-Rated Ally . | . . . Total Orders . | . . . Ally Attacks . | . . . Total Damage . | . . . Kills . | . . . Allies Corrupted . | . . . Allies Melted . | . . . Intel | -11 -10 -10 ------- Run | Yrd Mat Min Robot Analysis Total . | . . . Derelict Logs Recovered . | . . . Drone Launches . | . . . Drone Recoveries . | . . . Exploration | -11 -10 -10 ------------- Run | Yrd Mat Min Turns Passed 374 | 46 161 167 Spaces Moved 253 | 39 101 113 Core 24 | 20 . 4 Treads . | . . . Legs 174 | 19 101 54 Wheels . | . . . Hover . | . . . Flight 55 | . . 55 Fastest Speed 37 | 50 120 37 Average Speed 96 | 84 120 78 Slowest Speed 120 | 120 120 120 Overloaded Moves . | . . . Propulsion Burnouts . | . . . Robots Hopped 2 | . . 2 Cave-ins Triggered . | . . . Exploration Rate (%) 19 | 3 26 28 Regions Visited 2 Branch Regions 1 Pre-discovered Areas . | . . . Known Exits Taken . | . . . Unknown Exits Taken 2 | 1 1 . Scrap Searched 1 | . . 1 Spaces Dug . | . . . Terrain Destroyed 24 | . . 24 Melee . | . . . Projectile . | . . . AOE 24 | . . 24 Terrain Rammed . | . . . Walls Destroyed . | . . . Machines Disabled . | . . . Actions | -11 -10 -10 --------- Run | Yrd Mat Min Total 329 | 52 121 156 Wait 5 | . 5 . Move 247 | 38 100 109 Hop 2 | . . 2 Pick Up 17 | 7 4 6 Fast Attach 1 | . . 1 Attach 13 | 6 1 6 Detach 1 | . . 1 Swap 1 | . . 1 Drop 2 | 1 . 1 Fire 40 | . 11 29 Melee . | . . . Ram . | . . . Kick . | . . . Crush . | . . . Escape Stasis . | . . . Rewire . | . . . Trap . | . . . Miscellaneous . | . . . Route ------- -11/Scrapyard -10/Materials -10/Mines History --------- Turn | Location | Event 16 | -11/Scrapyard | Discovered new exit (range 15) 47 | -11/Scrapyard | Entered Materials 192 | -10/Materials | Discovered new exit (range 10) 208 | -10/Materials | Entered Mines 219 | -10/Mines | Found the Drone Emporium 225 | -10/Mines | Found Prototype Device 227 | -10/Mines | Identified Decoy Drone Bay 300 | -10/Mines | Core integrity fell below 50% 306 | -10/Mines | Build established: Mutant 362 | -10/Mines | Core integrity fell below 20% 375 | -10/Mines | Destroyed by G-34 Mercenary with Small Laser Last Messages --------------- 00310_ Acquired Lgt. Assault Rifle. 00312_ Acquired Flight Unit. 00318_ Acquired Lgt. Ion Engine. 00322_ K-01 Serf collects debris. 00328_ Searching scrap... 00328_ Found Huge Storage Unit. 00328_ Found 34 Matter. 00329_ Acquired 34 matter. 00329_ Acquired Huge Storage Unit. 00342_ Lgt. Assault Rifle destroyed. 00348_ S-10 Pest destroyed. 00351_ Acquired 19 matter. 00355_ Flight Unit destroyed. 00361_ Critical hit (Burn: +37). 00362_ Plasma Injector explodes. 00362_ Destroyed Lgt. Nuclear Core. 00362_ R-06 Scavenger destroyed. 00365_ G-47 Trooper destroyed. 00369_ Grenade Launcher destroyed. 00375_ U-05 Engineer lays Concrete. Map ----- +----------------------------------------------------+ | #??# #?????????????????????????????????????? | | #??# #### #?????????????????????????????????????? | | ##??# #### #?????????????????????????????????????? | | ????# ## ###???????????????????????????????????? | | ???## #######?????????????????????????????? | | ???# #?????????????????????????????? | | ???# #?????????????????????????????? | | ???## #### #?????????????????????????????? | | ????## ##??# #?????????????????????????????? | | ?????## ##???# #?????????????????????????????? | | ??????## #????# #?????????????????????????????? | | ???????## ##????# #?????????????????????????????? | | ????????####?????# #?????????????????????????????? | | ?????????????????# #?????????????????????????????? | | ?????????????????# #####?????????????????????????? | | ?????????????????# * #?????????????????????????? | | ?????????????????##### #?????????????????????????? | | ?????????????????????# ######????????????????????? | | ?????????????????????# #????????????????????? | | ?????????????????????# ##???????????????????? | | ?????????????????????##### ##??????????????????? | | ???????????????????????## ##?????????????????? | | ???????????????????????# g ##????????????????? | | ??????????????????????## = ;#????????????????? | | ??????????????????????# % #?????????????????? | | ???????????????????????# @ #?????????????????? | | ?????????????????????# ;#????????????????? | | ?????????????????????# ; %!;#????????????????? | | ?????????????????????# #; ##????????????????? | | ?????????????????????# ### #;;##?????????????????? | | ????????????????????? ???#u####??????????????????? | | ????????????????????#????# #?????????????????????? | | ?????????????????????????? #?????????????????????? | | ?????????????????????????? #?????????????????????? | | ?????????????????????????? #?????????????????????? | | ?????????????????????????? #?????????????????????? | | ?????????????????????????? #?????????????????????? | | ???????????????????????????#?????????????????????? | | ?????????????????????????????????????????????????? | | ?????????????????????????????????????????????????? | | ?????????????????????????????????????????????????? | | ?????????????????????????????????????????????????? | | ?????????????????????????????????????????????????? | | ?????????????????????????????????????????????????? | | ?????????????????????????????????????????????????? | | ?????????????????????????????????????????????????? | | ?????????????????????????????????????????????????? | | ?????????????????????????????????????????????????? | | ?????????????????????????????????????????????????? | | ?????????????????????????????????????????????????? | +----------------------------------------------------+ Best States ------------- Heat Dissipation 25 Energy Generation 10 Energy Capacity 125 Matter Stores 244 Matter Capacity 300 Sight Range 16 Terrain Scan Density 10 Evasion (%) 62 Item Schematics ----------------- None Robot Schematics ------------------ None Fabricated ------------ Nothing Alien Tech Used ----------------- None Achievements -------------- None Challenges ------------ None Game ------ Seed ContainmentDiametricPlating Manual? 0 Play Time 00:08:42 Cumulative 48.4 hours Start 2024.11.23 @ 20:04:06 End 2024.11.23 @ 20:09:45 Sessions 1 Manual Loads 0 Difficulty Rogue Special Mode None Game No. 34 Rogue 34 Adventurer 0 Explorer 0 Win Type - Total 0 Types 0/0/0/0/0/0/0/0/0 Lore% 10 Gallery% 32 Achievement% 27 Wizard Run 0 Options --------- Layout 1 ASCII 0 Keyboard 0 Movement Mouse Keybinds 0 Fullscreen 1 Font 24/Smallcaps Map View 50x35 Zoom Use 0% Tactical HUD 1 Map Filters NONE Filters NONE Steam 1 RUN: 089af9d3-b038-43aa-8ce0-a93719b2c3db